[Event "World Junior U20 Girls 2018"]
[Site "Gebze"]
[Date "2018.09.13"]
[Round "9"]
[White "Nomin-Erdene, Davaademberel"]
[Black "Wafa, Shahenda"]
[Result "1-0"]
[ECO "B67"]
[WhiteElo "2377"]
[BlackElo "2129"]
[Annotator "ChessBase"]
[PlyCount "133"]
[EventDate "2018.09.05"]
[EventType "swiss"]
[EventCountry "TUR"]
[SourceTitle "playchess.com"]
[Source "ChessBase"]
[SourceQuality "1"]
[TimeControl "40/5400+30:1800+30"]

1. e4 {[%emt 0:00:30]} c5 {[%emt 0:00:30]} 2. Nf3 {[%emt 0:00:00]} d6 {[%emt 0:00:30]} 3. d4 {[%emt 0:00:00]} cxd4 {[%emt 0:00:30]} 4. Nxd4 {[%emt 0:00:00]} Nf6 {[%emt 0:00:00]} 5. Nc3 {[%emt 0:00:00]} Nc6 {[%emt 0:00:00]} 6. Bg5 {[%emt 0:00:30]} e6 {[%emt 0:00:30]} 7. Qd2 {[%emt 0:00:00]} a6 {[%emt 0:00:30]} 8. O-O-O {[%emt 0:00:00]} Bd7 {[%emt 0:00:30]} 9. f3 {[%emt 0:00:30]} b5 {[%emt 0:01:30]} 10. g4 {[%emt 0:22:30]} Be7 {[%emt 0:09:30]} 11. Be3 {[%emt 0:00:30]} b4 {[%emt 0:04:30]} 12. Nce2 {[%emt 0:04:30]} Qc7 {[%emt 0:10:30]} 13. g5 {[%emt 0:07:30]} Nh5 {[%emt 0:01:30]} 14. Nxc6 {[%emt 0:12:30]} Qxc6 {[%emt 0:05:30]} 15. Nd4 {[%emt 0:02:30]} Qb7 {[%emt 0:01:30]} 16. f4 {[%emt 0:08:30]} g6 {[%emt 0:07:30]} 17. Be2 {[%emt 0:07:30]} a5 {[%emt 0:05:30]} 18. e5 {[%emt 0:06:30]} d5 {[%emt 0:00:30]} 19. f5 {[%emt 0:03:30]} a4 {[%emt 0:08:30]} 20. fxe6 {[%emt 0:03:21]} fxe6 {[%emt 0:01:30]} 21. Bxh5 {[%emt 0:00:58]} b3 {[%emt 0:04:30]} 22. Kb1 {[%emt 0:08:37]} gxh5 {[%emt 0:16:29]} 23. cxb3 {[%emt 0:01:53]} axb3 {[%emt 0:01:33]} 24. Nxb3 {[%emt 0:00:06]} O-O {[%emt 0:02:12]} 25. g6 {[%emt 0:03:31]} hxg6 {[%emt 0:00:30]} 26. Rhg1 {[%emt 0:00:30]} Be8 {[%emt 0:01:48]} 27. Qc2 {[%emt 0:02:48]} Kg7 {[%emt 0:02:08]} 28. Nd4 {[%emt 0:02:55]} Qa6 {[%emt 0:00:47]} 29. b3 {[%emt 0:00:22]} Kh8 {[%emt 0:04:00]} 30. Bc1 {[%emt 0:01:13]} g5 {[%emt 0:03:08]} 31. Rg2 {[%emt 0:00:20]} Rg8 {[%emt 0:00:07]} 32. Ka1 {[%emt 0:01:07]} Bg6 {[%emt 0:01:32]} 33. Qe2 {[%emt 0:00:45]} Qxe2 {[%emt 0:01:57]} 34. Rxe2 {[%emt 0:00:08]} Ra6 {[%emt 0:00:01]} 35. a4 {[%emt 0:00:49]} h4 {[%emt 0:01:22]} 36. Rg2 {[%emt 0:00:25]} Be4 {[%emt 0:00:09]} 37. Rf2 {[%emt 0:00:04]} Rg7 {[%emt 0:00:44]} 38. Ka2 {[%emt 0:00:54]} g4 {[%emt 0:02:16]} 39. Rf4 {[%emt 0:00:41]} g3 {[%emt 0:00:14]} 40. hxg3 {[%emt 0:00:00]} hxg3 {[%emt 0:00:00]} 41. Be3 {[%emt 0:12:10]} Kh7 {[%emt 0:08:03]} 42. Bg1 {[%emt 0:01:27]} Bd8 {[%emt 0:01:30]} 43. Nb5 {[%emt 0:08:41]} Be7 {[%emt 0:03:30]} 44. Nc3 {[%emt 0:01:23]} Bc2 {[%emt 0:01:30]} 45. Rdf1 {[%emt 0:00:45]} Ra8 {[%emt 0:05:15]} 46. Kb2 {[%emt 0:00:29]} Bd3 {[%emt 0:02:15]} 47. R1f3 {[%emt 0:02:50]} Ba6 {[%emt 0:00:08]} 48. b4 {[%emt 0:00:37]} Bc4 {[%emt 0:00:30]} 49. b5 {[%emt 0:03:00]} Bb4 {[%emt 0:00:51]} 50. b6 {[%emt 0:02:40]} Bxc3+ {[%emt 0:04:28]} 51. Kxc3 {[%emt 0:00:02]} Rxa4 {[%emt 0:00:33]} 52. Rf7 {[%emt 0:00:30]} Ra3+ {[%emt 0:00:00]} 53. Kd4 {[%emt 0:00:43]} Rxf3 {[%emt 0:01:15]} 54. Rxf3 {[%emt 0:00:30]} Ba6 {[%emt 0:00:20]} 55. Rf6 {[%emt 0:01:28]} Rg6 {[%emt 0:03:38]} 56. Rf8 {[%emt 0:01:06]} Bb7 {[%emt 0:05:31]} 57. Kc5 {[%emt 0:00:37]} Rg7 {[%emt 0:01:25]} 58. Rf4 {[%emt 0:00:29]} g2 {[%emt 0:00:37]} 59. Kd6 {[%emt 0:00:18]} Bc8 {[%emt 0:00:30]} 60. Rf8 {[%emt 0:00:32]} Bb7 {[%emt 0:00:53]} 61. Kxe6 {[%emt 0:00:37]} Rg6+ {[%emt 0:00:42]} 62. Rf6 {[%emt 0:00:33]} Kh6 {[%emt 0:00:34]} 63. Rxg6+ {[%emt 0:00:58]} Kxg6 {[%emt 0:00:30]} 64. Kd7 {[%emt 0:00:00]} Ba6 {[%emt 0:00:26]} 65. e6 {[%emt 0:00:00]} Bb5+ {[%emt 0:00:31]} 66. Kd8 {[%emt 0:00:31]} Bc6 {[%emt 0:00:30]} 67. e7 {[%emt 0:00:00]} 1-0

[Event "World Junior U20 Girls 2018"]
[Site "Gebze"]
[Date "2018.09.13"]
[Round "9"]
[White "Assaubayeva, Bibisara"]
[Black "Khomeriki, Nino"]
[Result "1-0"]
[ECO "C55"]
[WhiteElo "2371"]
[BlackElo "2313"]
[Annotator "NA"]
[PlyCount "79"]
[EventDate "2018.09.05"]
[EventType "swiss"]
[EventCountry "TUR"]
[SourceTitle "playchess.com"]
[Source "ChessBase"]
[SourceQuality "1"]
[TimeControl "40/5400+30:1800+30"]

1. e4 {[%emt 0:00:30]} e5 {[%emt 0:00:30]} 2. Nf3 {[%emt 0:00:30]} Nc6 {[%emt 0:00:00]} 3. Bc4 {[%emt 0:00:00]} Nf6 {[%emt 0:00:00]} 4. d3 {[%emt 0:00:00]} Be7 {[%emt 0:00:30]} 5. O-O {[%emt 0:00:00]} O-O {[%emt 0:00:00]} 6. Re1 {[%emt 0:00:00]} d6 {[%emt 0:00:00]} 7. a4 {[%emt 0:00:30]} Kh8 {[%emt 0:01:30]} 8. a5 {[%emt 0:00:30] C55: Two Knights: 4 d3, 4 d4 exd4 5 e5 and Max Lange Attack} (8. Nc3 Ng8 9. Nd5 f5 10. h3 fxe4 11. dxe4 Nf6 12. a5 a6 13. Ra3 Be6 14. Nxf6 Bxc4 15. Nd5 Bb5 {½-½ (67) Caruana,F (2822)-Grischuk,A (2766) Saint Louis 2018}) 8... a6 {[%emt 0:00:00]} 9. h3 {[%emt 0:00:00]} Ng8 {[%emt 0:07:00]} 10. Nc3 {[%emt 0:00:00]} f5 {[%emt 0:00:30]} 11. Nd5 {[%emt 0:00:00]} Bf6 {[%emt 0:00:00]} 12. c3 {[%emt 0:02:00]} h6 {[%emt 0:02:00]} 13. exf5 $146 {[%emt 0:04:30]} ({Predecessor:} 13. b4 Nce7 14. Nxf6 Nxf6 15. Nh4 fxe4 16. dxe4 {1-0 (43) Kashlinskaya,A (2419)-Semenova,E (2215) Konya 2014}) 13... Bxf5 {[%emt 0:05:30]} 14. d4 {[%emt 0:03:30]} exd4 {[%emt 0:07:30]} 15. cxd4 {[%emt 0:00:30]} Qd7 {[%emt 0:04:30]} 16. Be3 {[%emt 0:08:30]} Be4 {[%emt 0:17:30]} 17. Nxf6 {[%emt 0:09:30]} Nxf6 {[%emt 0:01:30]} 18. Nd2 {[%emt 0:02:30]} Bd5 {[%emt 0:13:30]} 19. Bd3 {[%emt 0:02:30]} Nb4 {[%emt 0:02:30]} 20. Bb1 {[%emt 0:08:30]} Be6 {[%emt 0:04:30]} 21. Nf3 {[%emt 0:04:30]} Nfd5 {[%emt 0:11:58]} 22. Nh4 {[%emt 0:04:30]} Rf6 {[%emt 0:01:03]} 23. Bd2 {[%emt 0:14:30]} Nc6 {[%emt 0:02:51]} 24. Ra3 {[%emt 0:05:30]} Qf7 {[%emt 0:04:57]} 25. Rg3 {[%emt 0:06:30]} Nce7 {[%emt 0:01:19]} 26. Qc2 $11 {[%emt 0:08:15]} g5 {[%emt 0:01:36]} 27. Rf3 {[%emt 0:00:46]} Rxf3 {[%emt 0:00:30]} 28. Nxf3 {[%emt 0:00:30]} Bf5 {[%emt 0:00:30]} 29. Qb3 {[%emt 0:00:10]} Bxb1 {[%emt 0:05:52]} 30. Qxb7 {[%emt 0:02:33]} Rg8 {[%emt 0:01:16]} 31. Rxb1 {[%emt 0:00:01]} g4 {[%emt 0:01:10]} 32. hxg4 {[%emt 0:00:01]} Qg6 {[%emt 0:02:27]} 33. Rf1 {[%emt 0:05:06]} Qxg4 {[%emt 0:00:30]} 34. Ne1 {[%emt 0:00:00]} Qe2 {[%emt 0:00:08]} 35. Bxh6 {[%emt 0:04:16]} Kh7 {[%emt 0:01:24]} 36. Bc1 {[%emt 0:00:16]} Qc4 {[%emt 0:00:52]} 37. Nf3 {[%emt 0:01:47]} Qd3 {[%emt 0:00:35]} 38. Ne1 {[%emt 0:02:14]} Qd1 {[%emt 0:00:29]} 39. Be3 {[%emt 0:01:09]} Kh8 {[%emt 0:00:30]} 40. Qxa6 {[%emt 0:00:00]} 1-0

[Event "World Junior U20 Girls 2018"]
[Site "Gebze"]
[Date "2018.09.13"]
[Round "9"]
[White "Hojjatova, Aydan"]
[Black "Potapova, Margarita"]
[Result "0-1"]
[ECO "D00"]
[WhiteElo "2356"]
[BlackElo "2277"]
[Annotator "NA"]
[PlyCount "102"]
[EventDate "2018.09.05"]
[EventType "swiss"]
[EventCountry "TUR"]
[SourceTitle "playchess.com"]
[Source "ChessBase"]
[SourceQuality "1"]
[TimeControl "40/5400+30:1800+30"]

1. d4 {[%emt 0:00:30]} Nf6 {[%emt 0:00:30]} 2. Bg5 {[%emt 0:00:00]} d5 {[%emt 0:01:30]} 3. Bxf6 {[%emt 0:00:00]} exf6 {[%emt 0:00:30]} 4. e3 {[%emt 0:00:30]} c6 {[%emt 0:00:30]} 5. c4 {[%emt 0:00:30]} dxc4 {[%emt 0:01:30]} 6. Bxc4 {[%emt 0:00:30]} Bd6 {[%emt 0:00:00]} 7. Nc3 {[%emt 0:00:00]} O-O {[%emt 0:01:00]} 8. Qc2 {[%emt 0:00:00] D00: 1 d4 d5: Unusual lines} (8. Nf3 Nd7 9. Qc2 Bc7 10. Bd3 h6 11. h4 Nb6 12. h5 Nd5 13. a3 Nxc3 14. bxc3 Re8 15. Rb1 Qd6 16. a4 {1-0 (42) Nakamura,H (2784)-Andreikin,D (2713) Moscow 2013}) 8... Nd7 {[%emt 0:13:30] LiveBook: 4 Games} 9. Bd3 {[%emt 0:01:30]} g6 {[%emt 0:04:30]} 10. h4 {[%emt 0:01:30]} f5 {[%emt 0:00:30]} 11. h5 {[%emt 0:07:30]} Nf6 {[%emt 0:02:30]} 12. hxg6 {[%emt 0:00:00]} hxg6 {[%emt 0:02:30]} 13. Nf3 {[%emt 0:04:00]} Qe7 {[%emt 0:03:30]} 14. O-O-O {[%emt 0:05:30]} b5 $146 {[%emt 0:13:30]} ({Predecessor:} 14... Kg7 15. Kb1 Bd7 16. Ng5 {½-½ (29) Rusanov,M (2440)-Novik,M (2467) St Petersburg 2013}) 15. g4 {[%emt 0:19:30]} Nxg4 {[%emt 0:10:30]} 16. Rdg1 {[%emt 0:02:30]} Kg7 {[%emt 0:14:30]} 17. e4 {[%emt 0:13:30]} fxe4 {[%emt 0:03:30]} 18. Nxe4 {[%emt 0:02:30]} f5 {[%emt 0:02:30]} 19. Neg5 {[%emt 0:10:30]} Bf4+ {[%emt 0:02:30]} 20. Kb1 {[%emt 0:00:30]} Bxg5 {[%emt 0:00:30] [#]} 21. Nxg5 {[%emt 0:00:00]} (21. Re1 $1 $16 {[%cal Re1e7]} Be3 22. fxe3) 21... Qxg5 {[%emt 0:00:00]} 22. Qxc6 {[%emt 0:06:00]} Qf6 {[%emt 0:02:26]} 23. Qxa8 {[%emt 0:01:30]} Nxf2 {[%emt 0:01:35]} 24. Rc1 {[%emt 0:06:44]} Qxd4 {[%emt 0:04:02]} 25. Bxb5 {[%emt 0:10:47]} Nxh1 {[%emt 0:03:21]} 26. Qxh1 {[%emt 0:00:30]} Be6 {[%emt 0:00:32]} 27. Bc6 {[%emt 0:02:47]} f4 {[%emt 0:02:53]} 28. Qh4 {[%emt 0:01:41]} Qf6 {[%emt 0:01:56]} 29. Qf2 {[%emt 0:00:30]} Rf7 {[%emt 0:00:00]} 30. Ka1 {[%emt 0:00:48]} Rc7 {[%emt 0:00:34]} 31. Rc3 {[%emt 0:00:02]} Bf7 {[%emt 0:01:05]} 32. Qf3 {[%emt 0:01:53]} Qe6 {[%emt 0:01:08]} 33. b3 {[%emt 0:01:04]} Qe5 {[%emt 0:00:30]} 34. Kb2 {[%emt 0:00:24]} Qf6 {[%emt 0:01:46]} 35. Qe4 {[%emt 0:01:12]} Re7 {[%emt 0:00:33]} 36. Qb4 {[%emt 0:00:24]} Re3 {[%emt 0:01:29]} 37. Kc2 {[%emt 0:00:26]} Re2+ {[%emt 0:00:44]} 38. Kb1 {[%emt 0:00:32]} Qf5+ {[%emt 0:01:40]} 39. Ka1 {[%emt 0:00:07]} Qe5 {[%emt 0:00:34]} 40. Qc5 {[%emt 0:00:00]} Qf6 {[%emt 0:00:00]} 41. Kb1 {[%emt 0:03:09]} g5 {[%emt 0:04:42]} 42. Bf3 {[%emt 0:02:30]} Bg6+ {[%emt 0:03:30]} 43. Kc1 {[%emt 0:00:00]} Rxa2 {[%emt 0:00:30]} 44. Qc7+ {[%emt 0:01:00]} Kh6 {[%emt 0:01:30]} 45. Be4 {[%emt 0:00:30]} Ra1+ {[%emt 0:11:37]} 46. Kb2 {[%emt 0:00:30]} Re1 {[%emt 0:00:22]} 47. Bxg6 {[%emt 0:04:30]} Kxg6 {[%emt 0:00:13]} 48. Kc2 {[%emt 0:01:30]} Re7 {[%emt 0:02:21]} 49. Qc4 {[%emt 0:01:30]} Qe6 $19 {[%emt 0:02:01]} 50. Qd3+ {[%emt 0:06:59]} Qe4 {[%emt 0:00:56]} 51. Rc6+ {[%emt 0:00:04]} Kh5 {[%emt 0:00:00]} 0-1

[Event "World Junior U20 Girls 2018"]
[Site "Gebze"]
[Date "2018.09.13"]
[Round "9"]
[White "Gorti, Akshita"]
[Black "Nurgali, Nazerke"]
[Result "0-1"]
[ECO "E18"]
[WhiteElo "2315"]
[BlackElo "2080"]
[Annotator "NA"]
[PlyCount "120"]
[EventDate "2018.09.05"]
[EventType "swiss"]
[EventCountry "TUR"]
[SourceTitle "playchess.com"]
[Source "ChessBase"]
[SourceQuality "1"]
[TimeControl "40/5400+30:1800+30"]

1. d4 {[%emt 0:00:30]} Nf6 {[%emt 0:00:30]} 2. c4 {[%emt 0:00:00]} e6 {[%emt 0:00:30]} 3. Nc3 {[%emt 0:00:00]} d5 {[%emt 0:00:30]} 4. Nf3 {[%emt 0:00:30]} Be7 {[%emt 0:00:30]} 5. g3 {[%emt 0:00:30]} O-O {[%emt 0:00:30]} 6. Bg2 {[%emt 0:00:30]} b6 {[%emt 0:00:30]} 7. O-O {[%emt 0:00:30]} Bb7 {[%emt 0:00:30]} 8. Ne5 {[%emt 0:01:30]} Na6 {[%emt 0:00:30]} 9. Bf4 {[%emt 0:00:30]} c5 {[%emt 0:01:30] E18: Damenindisch (Hauptfortsetzung)} 10. Rc1 {[%emt 0:01:30]} (10. cxd5 exd5 11. Rc1 Re8 12. Qa4 cxd4 13. Qxd4 Bc5 14. Qa4 g5 15. Nxf7 Kxf7 16. Bxg5 Qd7 17. Qh4 Qf5 18. Bxf6 Qxf6 19. Qxh7+ Qg7 {1-0 (54) Ponomariov,R (2764)-Bruzon Batista,L (2673) Khanty-Mansiysk 2011}) 10... Nc7 {[%emt 0:13:30]} 11. dxc5 {[%emt 0:08:30]} Bxc5 $146 {[%emt 0:03:30]} ({Vorgänger:} 11... bxc5) 12. Na4 {[%emt 0:06:30]} Bd6 {[%emt 0:05:30]} 13. c5 {[%emt 0:02:30]} bxc5 {[%emt 0:01:30]} 14. Nxc5 {[%emt 0:00:30]} Bxc5 {[%emt 0:01:30]} 15. Rxc5 {[%emt 0:00:30]} Qe7 {[%emt 0:12:30]} 16. Qd4 {[%emt 0:11:30]} Na6 {[%emt 0:03:30]} 17. Rcc1 {[%emt 0:09:30]} Rfc8 {[%emt 0:10:30] [#]} (17... Rfd8 $142) 18. Rxc8+ $1 {[%emt 0:08:30]} Bxc8 {[%emt 0:11:30]} 19. Rc1 {[%emt 0:01:30]} Bb7 {[%emt 0:01:30]} 20. Nc6 {[%emt 0:08:30]} Qe8 {[%emt 0:04:30]} 21. Na5 {[%emt 0:10:30]} Qb5 {[%emt 0:04:30]} 22. Nxb7 {[%emt 0:00:30]} Qxb7 {[%emt 0:00:30]} 23. a3 {[%emt 0:02:30]} Nd7 {[%emt 0:12:20]} 24. b4 {[%emt 0:03:30]} Re8 {[%emt 0:00:49]} 25. Bd6 {[%emt 0:07:31]} Qb6 {[%emt 0:00:30]} 26. Qxb6 {[%emt 0:00:30]} Nxb6 {[%emt 0:02:14]} 27. b5 {[%emt 0:04:20]} Rd8 {[%emt 0:01:39]} 28. Bf4 {[%emt 0:06:17]} Nb8 {[%emt 0:00:05]} 29. Rc7 {[%emt 0:01:18]} Rd7 {[%emt 0:00:32]} 30. Rc5 {[%emt 0:02:25]} Rd8 {[%emt 0:00:40]} 31. Bxb8 {[%emt 0:01:24]} Rxb8 {[%emt 0:00:03]} 32. Rc7 {[%emt 0:00:01]} Ra8 {[%emt 0:01:09]} 33. e3 {[%emt 0:00:36]} Kf8 {[%emt 0:00:30]} 34. Bf1 {[%emt 0:00:47]} Ke8 {[%emt 0:00:40]} 35. Bd3 {[%emt 0:00:26]} h6 {[%emt 0:01:01]} 36. Kf1 {[%emt 0:00:24]} Nd7 {[%emt 0:00:51]} 37. Ke2 {[%emt 0:01:05]} Kd8 {[%emt 0:00:06]} 38. Rc3 {[%emt 0:00:19]} Nb6 {[%emt 0:00:44]} 39. Bc2 {[%emt 0:00:29]} Rc8 {[%emt 0:01:44]} 40. Rxc8+ {[%emt 0:00:30]} Kxc8 {[%emt 0:00:00]} 41. a4 {[%emt 0:09:08]} Kc7 {[%emt 0:01:53]} 42. Kd3 {[%emt 0:03:57]} Kd6 {[%emt 0:00:30]} 43. Kc3 {[%emt 0:01:27]} Kc5 $1 {[%emt 0:02:30]} 44. Bb3 {[%emt 0:00:52]} Nd7 {[%emt 0:00:30]} 45. Bc2 {[%emt 0:02:30]} Nf6 {[%emt 0:06:30]} 46. h3 {[%emt 0:01:39]} Nd7 {[%emt 0:02:30]} 47. f4 {[%emt 0:01:10]} f6 {[%emt 0:00:30]} 48. g4 {[%emt 0:00:25]} e5 {[%emt 0:00:30]} 49. h4 {[%emt 0:00:46] [#]} g5 $1 {[%emt 0:01:30]} 50. hxg5 {[%emt 0:02:34]} hxg5 {[%emt 0:00:30]} 51. fxg5 {[%emt 0:00:30]} fxg5 {[%emt 0:00:30]} 52. Bd1 {[%emt 0:00:00]} Nf6 {[%emt 0:01:30]} 53. Bf3 {[%emt 0:00:00] [#]} Ne8 $1 {[%emt 0:00:30]} 54. Be2 {[%emt 0:02:07]} Nc7 {[%emt 0:01:54]} 55. Bd1 {[%emt 0:00:50]} Ne6 {[%emt 0:00:18]} 56. Bc2 {[%emt 0:00:32]} Nd8 {[%emt 0:02:00]} 57. Bd1 {[%emt 0:00:22]} Nb7 {[%emt 0:00:49]} 58. Be2 {[%emt 0:00:35]} Nd6 {[%emt 0:00:21]} 59. Bd3 $19 {[%emt 0:01:09]} e4 {[%emt 0:01:25]} 60. Be2 {[%emt 0:00:12]} Nc4 {[%emt 0:00:57]} 0-1

[Event "World Junior U20 Girls 2018"]
[Site "Gebze"]
[Date "2018.09.13"]
[Round "9"]
[White "Unuk, Laura"]
[Black "Meenal Gupta"]
[Result "1-0"]
[ECO "E11"]
[WhiteElo "2299"]
[BlackElo "1963"]
[Annotator "NA"]
[PlyCount "57"]
[EventDate "2018.09.05"]
[EventType "swiss"]
[EventCountry "TUR"]
[SourceTitle "playchess.com"]
[Source "ChessBase"]
[SourceQuality "1"]
[TimeControl "40/5400+30:1800+30"]

1. d4 {[%emt 0:00:30]} Nf6 {[%emt 0:00:30]} 2. c4 {[%emt 0:00:30]} e6 {[%emt 0:00:30]} 3. Nf3 {[%emt 0:00:00]} Bb4+ {[%emt 0:00:00]} 4. Nbd2 {[%emt 0:00:00]} b6 {[%emt 0:03:00]} 5. a3 {[%emt 0:00:00]} Bxd2+ {[%emt 0:00:30]} 6. Qxd2 {[%emt 0:00:00]} a5 {[%emt 0:04:30] E11: Bogo-Indian} (6... Ba6 7. Qc2 d5 8. cxd5 Qxd5 9. g3 Nbd7 10. Bg2 Rc8 11. Bf4 c5 12. Qa4 Qc4 13. Qxc4 Bxc4 14. dxc5 Nxc5 {½-½ (23) Navara,D (2737)-Miton,K (2612) Czech Republic 2017}) 7. b3 {[%emt 0:00:30]} d6 {[%emt 0:01:30]} 8. e3 {[%emt 0:00:30]} Bb7 {[%emt 0:01:30]} 9. Be2 {[%emt 0:01:30]} Nbd7 {[%emt 0:05:30]} 10. Bb2 {[%emt 0:00:30] LiveBook: 36 Games} Qe7 {[%emt 0:01:30]} 11. Qc2 {[%emt 0:09:30]} Be4 $146 {[%emt 0:14:30]} ({Predecessor:} 11... O-O 12. O-O Ne4 13. Nd2 Nxd2 14. Qxd2 {½-½ (22) Husari,S (2334)-Werner,D (2359) Budapest 2003}) 12. Bd3 {[%emt 0:09:30]} Bxf3 {[%emt 0:09:30]} 13. gxf3 {[%emt 0:00:00]} e5 {[%emt 0:00:00]} 14. O-O-O {[%emt 0:09:00]} c5 {[%emt 0:10:00]} 15. dxe5 {[%emt 0:03:30]} Nxe5 {[%emt 0:04:30]} 16. Be4 {[%emt 0:03:30]} O-O-O {[%emt 0:01:30]} 17. f4 {[%emt 0:16:30]} Ng6 {[%emt 0:00:30]} 18. Bf5+ {[%emt 0:00:30]} Kc7 {[%emt 0:01:30]} 19. Rhg1 {[%emt 0:00:00]} Ne8 {[%emt 0:01:30]} (19... Rhg8 $16 20. Kb1 Rde8) 20. Be4 {[%emt 0:03:00]} f6 {[%emt 0:02:30]} 21. Qd3 {[%emt 0:05:30]} Nf8 {[%emt 0:01:30]} 22. Qd5 {[%emt 0:02:30]} Rb8 {[%emt 0:01:30]} 23. Bf3 {[%emt 0:05:30]} Qe6 {[%emt 0:01:30]} 24. Qc6+ {[%emt 0:00:30]} Kd8 {[%emt 0:00:30]} 25. e4 {[%emt 0:01:30]} h5 {[%emt 0:05:30]} 26. e5 {[%emt 0:05:30]} fxe5 {[%emt 0:00:00]} 27. fxe5 {[%emt 0:02:30]} Rh6 {[%emt 0:00:00]} 28. exd6 $18 {[%emt 0:02:02]} Qf7 {[%emt 0:01:30]} 29. Rge1 {[%emt 0:05:43]} 1-0

[Event "World Junior U20 Girls 2018"]
[Site "Gebze"]
[Date "2018.09.13"]
[Round "9"]
[White "Antova, Gabriela"]
[Black "Varshini, V."]
[Result "0-1"]
[ECO "D37"]
[WhiteElo "2292"]
[BlackElo "2173"]
[Annotator "NA"]
[PlyCount "76"]
[EventDate "2018.09.05"]
[EventType "swiss"]
[EventCountry "TUR"]
[SourceTitle "playchess.com"]
[Source "ChessBase"]
[SourceQuality "1"]
[TimeControl "40/5400+30:1800+30"]

1. d4 {[%emt 0:00:30]} d5 {[%emt 0:00:30]} 2. Nf3 {[%emt 0:00:00]} Nf6 {[%emt 0:00:30]} 3. c4 {[%emt 0:00:00]} e6 {[%emt 0:00:30]} 4. Nc3 {[%emt 0:00:00]} Be7 {[%emt 0:00:00]} 5. Bf4 {[%emt 0:00:00]} O-O {[%emt 0:01:00]} 6. e3 {[%emt 0:00:30]} a6 {[%emt 0:03:30]} 7. cxd5 {[%emt 0:00:30]} exd5 {[%emt 0:00:30]} 8. Bd3 {[%emt 0:00:00] D37: Damengambit (5.Lf4)} Nbd7 {[%emt 0:02:30]} (8... Bg4 9. h3 Bxf3 10. Qxf3 c6 11. g4 Bd6 12. g5 Ne8 13. h4 Bxf4 14. Qxf4 Nd6 15. O-O-O f5 {½-½ (65) Moiseenko,A (2713)-Dubov,D (2629) Warsaw 2013}) 9. Rc1 {[%emt 0:01:00]} c6 {[%emt 0:03:30]} 10. Qc2 {[%emt 0:04:30]} Re8 {[%emt 0:01:30]} 11. O-O {[%emt 0:00:30]} Nf8 {[%emt 0:00:30]} 12. h3 {[%emt 0:08:30]} Ng6 {[%emt 0:09:30]} 13. Bh2 {[%emt 0:02:30]} Bd6 {[%emt 0:03:30]} 14. Bxd6 {[%emt 0:08:30]} Qxd6 {[%emt 0:00:00]} 15. Rb1 {[%emt 0:00:30]} Bd7 $146 {[%emt 0:09:00]} ({Vorgänger:} 15... Qe7 16. b4 Ne4 17. Ne2 Nh4 18. Bxe4 dxe4 19. Nxh4 Qxh4 20. f4 Bxh3 21. gxh3 Qxh3 22. Kf2 Qh4+ 23. Kg2 Re6 24. Ng3 Rg6 {1-0 (40) Menezes,C (2261)-Proyer,E (1911) Feldkirch 2013}) 16. b4 {[%emt 0:00:30]} Re7 {[%emt 0:03:30]} 17. Na4 {[%emt 0:10:30]} Rae8 {[%emt 0:04:30]} 18. Nc5 {[%emt 0:02:30]} Bc8 {[%emt 0:02:30]} 19. Nd2 $2 {[%emt 0:03:30] [#]} (19. a4 $14 {keeps the upper hand.}) 19... Nh4 $19 {[%emt 0:21:30]} 20. Rfc1 {[%emt 0:16:30]} Bxh3 {[%emt 0:14:18]} 21. gxh3 {[%emt 0:03:30]} Rxe3 {[%emt 0:00:07]} 22. Bf1 {[%emt 0:02:30]} Rg3+ {[%emt 0:01:37]} 23. Kh1 {[%emt 0:00:30]} Re2 {[%emt 0:00:00]} 24. Nde4 {[%emt 0:14:34]} Nxe4 {[%emt 0:14:15]} 25. Nxe4 {[%emt 0:00:47]} Rg1+ {[%emt 0:00:30]} 26. Kxg1 {[%emt 0:00:30]} Qg6+ {[%emt 0:01:16]} 27. Ng3 {[%emt 0:03:00]} Rxc2 {[%emt 0:00:48]} 28. Rxc2 {[%emt 0:00:44]} Qxc2 {[%emt 0:00:30]} 29. Rb3 {[%emt 0:00:30]} f5 {[%emt 0:00:08]} 30. Ne2 {[%emt 0:03:30]} Qxa2 {[%emt 0:00:12]} 31. Re3 {[%emt 0:00:00]} Qd2 {[%emt 0:00:45]} 32. Nf4 {[%emt 0:03:34]} Qxd4 {[%emt 0:00:35]} 33. Nd3 {[%emt 0:01:57]} f4 {[%emt 0:00:35]} 34. Re7 {[%emt 0:00:25]} Nf3+ {[%emt 0:01:52]} 35. Kg2 {[%emt 0:00:08]} Nd2 {[%emt 0:00:00]} 36. Ne5 {[%emt 0:02:21]} Kf8 {[%emt 0:00:06]} 37. Re6 {[%emt 0:00:44]} Nxf1 {[%emt 0:01:17]} 38. Kxf1 {[%emt 0:00:03]} Qxb4 {[%emt 0:00:32]} 0-1